Cogmind - Beta 11.1 @@@ ROGUE MODE // 2022.05.13 @ 00:34:05 Player: Olga Result: Destroyed by Y-54 Guardian with Flak Gun Performance ------------- Evolutions (4) 2000 Regions Visited (7) 1400 Robots Destroyed (0) 0 Value Destroyed (0) 0 Prototype IDs (0) 0 Alien Tech Used (0) 0 Bonus (1325) 1325 TOTAL SCORE: 4725 Bonus ------- Pacifist 1325 Cogmind --------- Core Integrity 0/850 Matter 300/300 Energy 99/100 System Corruption 0% Temperature Cool (6) Movement Core (50) Location -6/Factory Parts ------- > --- POWER (9) -------- (None) > --- PROPULSION (2) --- (None) > --- UTILITY (2) ------ (None) > --- WEAPON (2) ------- (None) > --- INVENTORY (5) ---- Hacking Suite System Shield Mini Grenade Launcher Peak State ------------ None Favorites ----------- Power None Propulsion None Utility None Weapon None Build | -11 -10 -9 -8 -7 -6 -6 -6 ------- Run | Scr Mat Mat Mat Fac Fac Was Fac Slots Evolved 8 | . . 2 2 2 2 . . Power 8 | . . 2 2 2 2 . . Propulsion . | . . . . . . . . Utility . | . . . . . . . . Weapon . | . . . . . . . . Parts Attached . | . . . . . . . . Power . | . . . . . . . . Engine . | . . . . . . . . Core . | . . . . . . . . Reactor . | . . . . . . . . Propulsion . | . . . . . . . . Treads . | . . . . . . . . Leg . | . . . . . . . . Wheel . | . . . . . . . . Hover . | . . . . . . . . Flight . | . . . . . . . . Utility . | . . . . . . . . Device . | . . . . . . . . Storage . | . . . . . . . . Processor . | . . . . . . . . Hackware . | . . . . . . . . Protection . | . . . . . . . . Artifact . | . . . . . . . . Weapon . | . . . . . . . . Energy Gun . | . . . . . . . . Energy Cannon . | . . . . . . . . Ballistic Gun . | . . . . . . . . Ballistic Cannon . | . . . . . . . . Launcher . | . . . . . . . . Special Weapon . | . . . . . . . . Impact Weapon . | . . . . . . . . Slashing Weapon . | . . . . . . . . Piercing Weapon . | . . . . . . . . Special Melee Weapon . | . . . . . . . . Unidentified Prototypes . | . . . . . . . . Parts Lost . | . . . . . . . . Power . | . . . . . . . . Propulsion . | . . . . . . . . Utility . | . . . . . . . . Weapon . | . . . . . . . . Highest Loss Streak . | . . . . . . . . To Critical Strikes . | . . . . . . . . Average Slot Usage (%) . | . . . . . . . . Naked Turns 399 | . 17 44 33 71 17 47 170 Heaviest Build . | . . . . . . . . Greatest Support 3 | 3 3 3 3 3 3 3 3 Greatest Overweight (x) . | . . . . . . . . Average Overweight (x) . | . . . . . . . . Largest Inventory Capacity 5 | 5 5 5 5 5 5 5 5 Average Capacity 5 | 5 5 5 5 5 5 5 5 Most Carried 4 | 4 . 1 1 1 1 1 3 Average Carried 1 | 2 . . 1 1 1 1 2 Final Capacity 5 | 5 5 5 5 5 5 5 5 Final Carried 3 | . . 1 1 1 1 1 3 Class Distribution -------------------- 100% | Mutant Dominant Class ---------------- Mutant | -9/Materials Mutant | -8/Materials Mutant | -7/Factory Mutant | -6/Factory Mutant | -6/Waste Mutant | -6/Factory Resources | -11 -10 -9 -8 -7 -6 -6 -6 ----------- Run | Scr Mat Mat Mat Fac Fac Was Fac Matter Collected 200 | 200 . . . . . . . Remotely . | . . . . . . . . Salvage Created . | . . . . . . . . Parts . | . . . . . . . . Haulers Intercepted . | . . . . . . . . Recyclers Shooed . | . . . . . . . . Parts Field Recycled . | . . . . . . . . Retrieved Matter . | . . . . . . . . Parts Self-Destructed . | . . . . . . . . Prevented . | . . . . . . . . Kills | -11 -10 -9 -8 -7 -6 -6 -6 ------- Run | Scr Mat Mat Mat Fac Fac Was Fac Combat Hostiles Destroyed . | . . . . . . . . Classes Destroyed . | . . . . . . . . Best Kill Streak . | . . . . . . . . Combat Bots Only . | . . . . . . . . Max Kills in Single Turn . | . . . . . . . . Gunslinging . | . . . . . . . . Exploded . | . . . . . . . . Melee . | . . . . . . . . Uniques/NPCs Destroyed . | . . . . . . . . Combat | -11 -10 -9 -8 -7 -6 -6 -6 -------- Run | Scr Mat Mat Mat Fac Fac Was Fac Damage Taken 1158 | . . 6 204 98 . . 850 Core 1158 | . . 6 204 98 . . 850 Absorbed by Shields . | . . . . . . . . Core Remaining (%) 89 | 100 100 98 62 86 . . . Volleys Fired . | . . . . . . . . Largest . | . . . . . . . . Hottest . | . . . . . . . . Shots Fired . | . . . . . . . . Gun . | . . . . . . . . Cannon . | . . . . . . . . Launcher . | . . . . . . . . Special . | . . . . . . . . Kinetic . | . . . . . . . . Thermal . | . . . . . . . . Explosive . | . . . . . . . . Electromagnetic . | . . . . . . . . Robot Hit Streak . | . . . . . . . . Robot Miss Streak . | . . . . . . . . Penetration Max . | . . . . . . . . Secondary Targets . | . . . . . . . . Shots Hit Robots . | . . . . . . . . Core Hits . | . . . . . . . . Critical Kills . | . . . . . . . . Critical Parts Destroyed . | . . . . . . . . Critical Strikes . | . . . . . . . . Melee Attacks . | . . . . . . . . Impact . | . . . . . . . . Slashing . | . . . . . . . . Piercing . | . . . . . . . . Sneak Attacks . | . . . . . . . . Combat Hostiles . | . . . . . . . . Follow-up Attacks . | . . . . . . . . Damage Inflicted 23 | . . 12 . . . . 11 Guns . | . . . . . . . . Cannons . | . . . . . . . . Explosions . | . . . . . . . . Melee . | . . . . . . . . Ramming 23 | . . 12 . . . . 11 Kinetic . | . . . . . . . . Thermal . | . . . . . . . . Explosive . | . . . . . . . . Electromagnetic . | . . . . . . . . Impact . | . . . . . . . . Slashing . | . . . . . . . . Piercing . | . . . . . . . . Highest Corruption . | . . . . . . . . Average Corruption . | . . . . . . . . Corruption Purged . | . . . . . . . . Corruption Blocked . | . . . . . . . . Overload Shots . | . . . . . . . . Overflow Damage . | . . . . . . . . Projectiles . | . . . . . . . . Explosions . | . . . . . . . . Melee . | . . . . . . . . Knockbacks . | . . . . . . . . Impact . | . . . . . . . . Kinetic . | . . . . . . . . Secondary . | . . . . . . . . Self-Inflicted Damage 11 | . . 6 . . . . 5 Shots . | . . . . . . . . Rammed 3 | . . 1 . . . . 2 Targets Rammed 3 | . . 1 . . . . 2 Kicked . | . . . . . . . . Crushed . | . . . . . . . . Highest Temperature 9 | . . . . . . . 9 Average Temperature 9 | . . . . . . . 9 Received Heat Transfer 346 | . . . 90 . . . 256 Siege Activations . | . . . . . . . . Robots Corrupted . | . . . . . . . . Combat Hostiles . | . . . . . . . . Parts Fried . | . . . . . . . . Impact Corruptions . | . . . . . . . . Robots Melted . | . . . . . . . . Combat Hostiles . | . . . . . . . . Parts Melted . | . . . . . . . . Heat Transferred . | . . . . . . . . Parts Sabotaged . | . . . . . . . . Parts Stolen . | . . . . . . . . Parts Stripped . | . . . . . . . . Power Chain Reactions . | . . . . . . . . Missiles Intercepted . | . . . . . . . . Alert | -11 -10 -9 -8 -7 -6 -6 -6 ------- Run | Scr Mat Mat Mat Fac Fac Was Fac Peak Influence 306 | . . 15 65 89 43 30 306 Initial 43 | . . . 5 29 43 15 21 Average 86 | . . 3 42 55 43 24 161 Maximum Alert Level 1 | . . . . . . . 1 Low Security (%) 77 | 100 100 100 100 100 100 100 47 Level 1 22 | . . . . . . . 52 Level 2 . | . . . . . . . . Level 3 . | . . . . . . . . Level 4 . | . . . . . . . . Level 5 . | . . . . . . . . High Security . | . . . . . . . . Max Security . | . . . . . . . . Squads Dispatched 4 | . . . 1 2 . . 1 Investigation . | . . . . . . . . Extermination . | . . . . . . . . Reinforcement 4 | . . . 1 2 . . 1 Assault . | . . . . . . . . Garrison . | . . . . . . . . Intercept . | . . . . . . . . Searches Triggered . | . . . . . . . . Construction Impeded . | . . . . . . . . Haulers Reinforced . | . . . . . . . . Active Scanning Responses . | . . . . . . . . Cargo Convoy Interrupts . | . . . . . . . . Stealth | -11 -10 -9 -8 -7 -6 -6 -6 --------- Run | Scr Mat Mat Mat Fac Fac Was Fac Distress Signals . | . . . . . . . . Communications Jammed . | . . . . . . . . Distress Signals . | . . . . . . . . Times Spotted 45 | . . 1 5 6 . 4 29 Peak Tracking Total 12 | . . 1 4 4 . 4 12 Tactical Retreats 5 | . . . . . . . 5 Traps | -11 -10 -9 -8 -7 -6 -6 -6 ------- Run | Scr Mat Mat Mat Fac Fac Was Fac Traps Triggered 3 | . . . . . 1 . 2 Indirectly . | . . . . . . . . Trap Hack Attempts . | . . . . . . . . Triggered . | . . . . . . . . Disarmed . | . . . . . . . . Reprogrammed . | . . . . . . . . Reused . | . . . . . . . . Traps Extracted . | . . . . . . . . Installed . | . . . . . . . . Triggered . | . . . . . . . . Machines | -11 -10 -9 -8 -7 -6 -6 -6 ---------- Run | Scr Mat Mat Mat Fac Fac Was Fac Machines Disabled . | . . . . . . . . Max in Single Turn . | . . . . . . . . Machines Sabotaged . | . . . . . . . . Garrisons Compromised . | . . . . . . . . Overloaded Fab Kills . | . . . . . . . . Hacking | -11 -10 -9 -8 -7 -6 -6 -6 --------- Run | Scr Mat Mat Mat Fac Fac Was Fac Machines Accessed . | . . . . . . . . Terminals . | . . . . . . . . Fabricators . | . . . . . . . . Repair Stations . | . . . . . . . . Recycling Units . | . . . . . . . . Scanalyzers . | . . . . . . . . Garrison Access . | . . . . . . . . Total Hacks . | . . . . . . . . Successful . | . . . . . . . . Failed . | . . . . . . . . Catastrophic . | . . . . . . . . Database Lockouts . | . . . . . . . . Manual . | . . . . . . . . Terminals . | . . . . . . . . Fabricators . | . . . . . . . . Repair Stations . | . . . . . . . . Recycling Units . | . . . . . . . . Scanalyzers . | . . . . . . . . Garrison Access . | . . . . . . . . Terminal Hacks . | . . . . . . . . Fabricator Hacks . | . . . . . . . . Repair Station Hacks . | . . . . . . . . Recycling Unit Hacks . | . . . . . . . . Scanalyzer . | . . . . . . . . Garrison Access Hacks . | . . . . . . . . Unauthorized Hacks . | . . . . . . . . Terminals . | . . . . . . . . Fabricators . | . . . . . . . . Repair Stations . | . . . . . . . . Recycling Units . | . . . . . . . . Scanalyzers . | . . . . . . . . Garrison Access . | . . . . . . . . Data Cores Recovered . | . . . . . . . . Used . | . . . . . . . . Hacking Detections . | . . . . . . . . Full Trace Events . | . . . . . . . . Feedback Events . | . . . . . . . . Feedback Blocked . | . . . . . . . . Robot Schematics Acquired . | . . . . . . . . Robots Built . | . . . . . . . . Authchips . | . . . . . . . . Time . | . . . . . . . . Total Robot Build Rating . | . . . . . . . . Part Schematics Acquired . | . . . . . . . . Parts Built . | . . . . . . . . Authchips . | . . . . . . . . Time . | . . . . . . . . Total Part Build Rating . | . . . . . . . . Parts Repaired . | . . . . . . . . Time . | . . . . . . . . Parts Recycled . | . . . . . . . . Recycled Matter . | . . . . . . . . Retrieved Matter . | . . . . . . . . Retrieved Components . | . . . . . . . . Parts Scanalyzed . | . . . . . . . . Part Schematics Acquired . | . . . . . . . . Parts Damaged . | . . . . . . . . Bothacking | -11 -10 -9 -8 -7 -6 -6 -6 ------------ Run | Scr Mat Mat Mat Fac Fac Was Fac Used RIF Installer . | . . . . . . . . Robots Hacked . | . . . . . . . . Non-combat . | . . . . . . . . Combat . | . . . . . . . . Robot Hacks Applied . | . . . . . . . . Relay Couplers Released . | . . . . . . . . Fabnet Peak Effective % . | . . . . . . . . Robots Rewired . | . . . . . . . . Allies Hacked . | . . . . . . . . Hacks Repelled . | . . . . . . . . Allies | -11 -10 -9 -8 -7 -6 -6 -6 -------- Run | Scr Mat Mat Mat Fac Fac Was Fac Total Allies . | . . . . . . . . Largest Group . | . . . . . . . . Highest-Rated Group . | . . . . . . . . Highest-Rated Ally . | . . . . . . . . Total Orders . | . . . . . . . . Ally Attacks . | . . . . . . . . Total Damage . | . . . . . . . . Kills . | . . . . . . . . Allies Corrupted . | . . . . . . . . Allies Melted . | . . . . . . . . Intel | -11 -10 -9 -8 -7 -6 -6 -6 ------- Run | Scr Mat Mat Mat Fac Fac Was Fac Robot Analysis Total . | . . . . . . . . Derelict Logs Recovered . | . . . . . . . . Drone Launches . | . . . . . . . . Drone Recoveries . | . . . . . . . . Exploration | -11 -10 -9 -8 -7 -6 -6 -6 ------------- Run | Scr Mat Mat Mat Fac Fac Was Fac Turns Passed 402 | 3 17 44 33 71 17 47 170 Spaces Moved 784 | 1 34 84 65 142 34 93 331 Core 784 | 1 34 84 65 142 34 93 331 Treads . | . . . . . . . . Legs . | . . . . . . . . Wheels . | . . . . . . . . Hover . | . . . . . . . . Flight . | . . . . . . . . Fastest Speed 50 | 50 50 50 50 50 50 50 50 Average Speed 50 | 50 50 50 50 50 50 50 50 Slowest Speed 50 | 50 50 50 50 50 50 50 50 Overloaded Moves . | . . . . . . . . Propulsion Burnouts . | . . . . . . . . Robots Hopped . | . . . . . . . . Cave-ins Triggered . | . . . . . . . . Exploration Rate (%) 17 | 2 11 12 10 9 2 76 15 Regions Visited 7 Branch Regions . Pre-discovered Areas . | . . . . . . . . Known Exits Taken . | . . . . . . . . Unknown Exits Taken 5 | 1 1 1 1 1 . . . Scrap Searched . | . . . . . . . . Spaces Dug . | . . . . . . . . Terrain Destroyed . | . . . . . . . . Melee . | . . . . . . . . Projectile . | . . . . . . . . AOE . | . . . . . . . . Terrain Rammed . | . . . . . . . . Walls Destroyed . | . . . . . . . . Machines Disabled . | . . . . . . . . Actions | -11 -10 -9 -8 -7 -6 -6 -6 --------- Run | Scr Mat Mat Mat Fac Fac Was Fac Total 789 | 5 33 85 64 141 34 92 335 Wait . | . . . . . . . . Move 778 | . 33 83 64 141 34 92 331 Hop . | . . . . . . . . Pick Up 3 | . . 1 . . . . 2 Fast Attach . | . . . . . . . . Attach . | . . . . . . . . Detach . | . . . . . . . . Swap . | . . . . . . . . Drop 5 | 5 . . . . . . . Fire . | . . . . . . . . Melee . | . . . . . . . . Ram 3 | . . 1 . . . . 2 Kick . | . . . . . . . . Crush . | . . . . . . . . Escape Stasis . | . . . . . . . . Rewire . | . . . . . . . . Trap . | . . . . . . . . Miscellaneous . | . . . . . . . . Route ------- -11/Scrapyard -10/Materials -9/Materials -8/Materials -7/Factory -6/Factory -6/Waste -6/Factory History --------- Turn | Location | Event 1 | -11/Scrapyard | Released all parts (6) 4 | -11/Scrapyard | Discovered new exit (range 0) 4 | -11/Scrapyard | Entered Materials 19 | -10/Materials | Discovered new exit (range 5) 21 | -10/Materials | Entered another Materials area 21 | -9/Materials | Evolved 2 slots: Power x2 59 | -9/Materials | Discovered new exit (range 12) 65 | -9/Materials | Entered another Materials area 65 | -8/Materials | Evolved 2 slots: Power x2 90 | -8/Materials | Discovered new exit (range 15) 98 | -8/Materials | Entered Factory 98 | -7/Factory | Evolved 2 slots: Power x2 167 | -7/Factory | Discovered new exit (range 5) 169 | -7/Factory | Entered another Factory area 169 | -6/Factory | Evolved 2 slots: Power x2 186 | -6/Factory | Sucked down chute 186 | -6/Factory | Entered Waste 203 | -6/Waste | Spotted C-40 Crusher 203 | -6/Waste | Spotted C-40 Crusher 205 | -6/Waste | Spotted C-40 Crusher 205 | -6/Waste | Spotted C-40 Crusher 211 | -6/Waste | Spotted C-40 Crusher 227 | -6/Waste | Discovered new exit (range 12) 233 | -6/Waste | Entered Factory 309 | -6/Factory | Build established: Mutant 346 | -6/Factory | Core integrity fell below 50% 377 | -6/Factory | Core integrity fell below 20% 403 | -6/Factory | Destroyed by Y-54 Guardian with Flak Gun Last Messages --------------- GOAL=ESCAPE 00247_ Triggered Heavy Explosive Trap. 00247_ An explosion rips through the floor. 00259_ K-01 Serf collects debris. 00266_ ALERT: All DSF locations entering lockdown mode. 00270_ Acquired System Shield. 00273_ K-01 Serf cleans the Terminal. 00278_ Slammed into U-05 Engineer. 00287_ Triggered Ambush Trap. 00287_ B-48 Gladiator emerges from a hatch in the floor. 00287_ L-41 Fighter emerges from a hatch in the floor. 00287_ S-27 Virus emerges from a hatch in the floor. 00308_ Acquired Hacking Suite. 00333_ O-24 Administrator: "IFF HANDSHAKE FAILED. SECURING TERMINAL." 00334_ O-24 Administrator uses terminal to summon reinforcements. 00334_ ALERT: Hostiles spotted, dispatching reinforcements to Terminal F003. 00334_ O-24 Administrator locks terminal. 00362_ K-01 Serf collects debris. 00373_ Critical hit (Burn: +50). Map ----- +----------------------------------------------------+ | ?????????????????????????????????????????????????? | | ?????????????????????????????????????????????????? | | ?????????????????????????????????????????????????? | | ?????????????????????????????????????????????????? | | ?????????????????????????????????????????????????? | | ?????????????????????????????????????????????????? | | ?????????????????????????????????????????????????? | | ?????????????????????????????????????????????????? | | ?????????????????????????????????????????????????? | | ?????????????????????????????????????????????????? | | ?????????????????????????????????????????????????? | | ?????????????????????????????????????????????????? | | ?????????????????????????????????????????????????? | | ?????????????????????????????????????????????????? | | ?????????????????????????????????????????????????? | | ?????????????????????????????????????????????????? | | ? ??????????????????????????????????????????????? | | " ###+###???????????????????????????????????????? | | " #??????????????????????????????????????? | | " #??????????????????????????????????????? | | ? #??????????????????????????????????????? | | #??????????????????????????????????????? | | #????????????????????##????????????????? | | #?????????????????? #????????????????? | | ###+############# #????????????????? | | "" """ gg k @ Y +????????????????? | | "Y """ g ### w #????????????????? | | "" """ #???? #????????????????? | | #??????##????????????????? | | ! #????????????????????????? | | +#### #### # T### ###????????????????????????? | | ????# #??# ####?# #??????????????????????????? | | ????# #??# #????# #??????????????????????????? | | ????+ ####+######+##?????????????????????????? | | ????# # #?????????????????????????? | | ????# # """" """" #?????????????????????????? | | ????# #[ """" """" #?????????????????????????? | | ????# # """" """" #?????????????????????????? | | ????# # """" """" #?????????????????????????? | | ????# # #?????????????????????????? | | ????# + """" """" #?????????????????????????? | | ????# # """" """" #?????????????????????????? | | ????# # ???"" ""?? #?????????????????????????? | | ????# #?????" "??? #??#####??????????????????? | | ????# #????? ??? #??# ?????????????????? | | ????# #?????] ???????# ????????????????? | | ????# #?????###???????# ????????????????? | | ????+ #???????????????# ????????????????? | | ????# #???????????????# ????????????????? | | ????# #???????????????# """""???????????? | +----------------------------------------------------+ Best States ------------- Heat Dissipation 37 Energy Generation 5 Energy Capacity 100 Matter Stores 300 Matter Capacity 300 Sight Range 16 Terrain Scan Density 10 Evasion (%) 50 Item Schematics ----------------- None Robot Schematics ------------------ None Fabricated ------------ Nothing Alien Tech Used ----------------- None Achievements -------------- None Challenges ------------ None Game ------ Seed helloworld Manual? 1 Play Time 00:07:00 Cumulative 252.6 hours Start 2022.05.13 @ 00:28:58 End 2022.05.13 @ 00:34:05 Sessions 1 Manual Loads 0 Difficulty Rogue Special Mode None Game No. 369 Rogue 366 Adventurer 0 Explorer 3 Win Type - Total 8 Types 8/0/0/0/0/0/0/0/0 Lore% 71 Gallery% 75 Achievement% 62 Wizard Run 0 Options --------- ASCII 1 Keyboard 1 Movement Vi Keybinds 0 Fullscreen 1 Font 18/SmallcapsGlow Map View 76x50 Tactical HUD 1 Map Filters NONE Filters NONE Steam 1 RUN: 9fc1bea8-cd1c-4a4d-a8c5-af4cbbf3417e